Cogmind - Beta 13 @@@ ROGUE MODE // 2024.04.25 @ 00:45:02 Player: ThatBishHoly Result: Destroyed by LZ-WN0(R) with Subdweller Laser Performance ------------- Evolutions (0) 0 Regions Visited (3) 600 Robots Destroyed (10) 50 Value Destroyed (338) 338 Prototype IDs (2) 40 Alien Tech Used (0) 0 Bonus (0) 0 TOTAL SCORE: 1028 Bonus ------- None Cogmind --------- Core Integrity 0/250 Matter 272/300 Energy 100/100 System Corruption 0% Temperature Cool (6) Movement Treading (160) Location -10/Subcaves Parts ------- > --- POWER (1) -------- (None) > --- PROPULSION (2) --- Light Treads Spiked Treads > --- UTILITY (2) ------ Signal Interpreter Terrain Scanner > --- WEAPON (2) ------- Beam Cannon Battle Rifle > --- INVENTORY (5) ---- Barrage Gun Makeshift Shrapnel Gun Mining Laser Scrap Shield Fragment (43) Scrap Shield Fragment (40) Peak State ------------ > --- POWER ------------ Subdweller Power Source > --- PROPULSION ------- Light Treads Light Treads > --- UTILITY ---------- Subdweller Optics Signal Interpreter > --- WEAPON ----------- Heavy Riot Gun Makeshift Shrapnel Gun > --- INVENTORY -------- Ion Engine Subdweller Monowheel Terrain Scanner Beam Cannon Mining Laser [Rating: 15] Favorites ----------- Power Ion Engine Engine Ion Engine Propulsion Light Treads Treads Light Treads Leg Aluminum Leg Utility Signal Interpreter Device Terrain Scanner Processor Signal Interpreter Weapon Makeshift Shrapnel Gun Energy Gun Heavy Riot Gun Energy Cannon Beam Cannon Ballistic Gun Makeshift Shrapnel Gun Ballistic Cannon Battle Cannon Launcher Grenade Launcher Special Weapon Mining Laser Build | -11 -10 -10 -10 ------- Run | Yrd Mat Min Sub Slots Evolved . | . . . . Power . | . . . . Propulsion . | . . . . Utility . | . . . . Weapon . | . . . . Parts Attached 23 | 5 3 4 11 Power 3 | 1 . . 2 Engine 3 | 1 . . 2 Core . | . . . . Reactor . | . . . . Propulsion 5 | 2 . 2 1 Treads 3 | . . 2 1 Leg 2 | 2 . . . Wheel . | . . . . Hover . | . . . . Flight . | . . . . Utility 4 | . 1 1 2 Device 3 | . 1 . 2 Storage . | . . . . Processor 1 | . . 1 . Hackware . | . . . . Protection . | . . . . Artifact . | . . . . Weapon 11 | 2 2 1 6 Energy Gun 3 | 2 . . 1 Energy Cannon 3 | . 1 . 2 Ballistic Gun 2 | . . . 2 Ballistic Cannon 1 | . . . 1 Launcher 1 | . 1 . . Special Weapon 1 | . . 1 . Impact Weapon . | . . . . Slashing Weapon . | . . . . Piercing Weapon . | . . . . Special Melee Weapon . | . . . . Unidentified Prototypes . | . . . . Parts Lost 3 | . . . 3 Power 1 | . . . 1 Propulsion 1 | . . . 1 Utility . | . . . . Weapon 1 | . . . 1 Highest Loss Streak 2 | . . . 2 To Critical Strikes . | . . . . Average Slot Usage (%) 95 | . 76 96 99 Engine 13 | . 14 14 13 Treads 22 | . . 22 27 Leg 4 | . 28 5 . Device 12 | . 5 14 13 Processor 11 | . . 10 14 Energy Gun 9 | . 19 . 8 Energy Cannon 4 | . 4 14 3 Ballistic Gun 9 | . . . 13 Ballistic Cannon 1 | . . . 2 Special Weapon 1 | . . 14 . Naked Turns . | . . . . Heaviest Build 13 | 9 11 10 13 Greatest Support 40 | 20 20 40 40 Greatest Overweight (x) . | . . . . Average Overweight (x) . | . . . . Largest Inventory Capacity 5 | 5 5 5 5 Average Capacity 5 | 5 5 5 5 Most Carried 5 | 5 4 4 5 Average Carried 2 | . 1 2 3 Final Capacity 5 | 5 5 5 5 Final Carried 5 | . 4 2 5 Class Distribution -------------------- 59% | Derelict-Mutant 40% | Mutant Dominant Class ---------------- Mutant | -10/Materials Mutant | -10/Mines Derelict-Mutant | -10/Subcaves Resources | -11 -10 -10 -10 ----------- Run | Yrd Mat Min Sub Matter Collected 515 | 193 60 49 213 Remotely . | . . . . Salvage Created 244 | . 172 . 72 Parts 16 | . 14 . 2 Haulers Intercepted . | . . . . Recyclers Shooed . | . . . . Parts Field Recycled . | . . . . Retrieved Matter . | . . . . Parts Self-Destructed 3 | . . . 3 Prevented . | . . . . Kills | -11 -10 -10 -10 ------- Run | Yrd Mat Min Sub Combat Hostiles Destroyed 8 | . 6 . 2 Guns 2 | . 1 . 1 Cannons 1 | . . . 1 AOE 5 | . 5 . . Classes Destroyed 4 | . 3 . 1 Builder 1 | . 1 . . Watcher 1 | . 1 . . Grunt 6 | . 6 . . Subdweller 2 | . . . 2 Best Kill Streak 7 | . 7 . 1 Combat Bots Only 6 | . 6 . 1 Max Kills in Single Turn 3 | . 3 . 1 Gunslinging . | . . . . Exploded 3 | . 3 . . Melee . | . . . . Uniques/NPCs Destroyed . | . . . . Combat | -11 -10 -10 -10 -------- Run | Yrd Mat Min Sub Hostile Shots Fired 71 | . 22 . 49 Missed 21 | . 7 . 14 Damage Taken 1028 | 1 284 . 743 Core 265 | 1 50 . 214 Absorbed by Shields . | . . . . Core Remaining (%) 99 | 99 . . . Volleys Fired 34 | . 8 6 20 Largest 2 | . 2 1 2 Hottest 100 | . 100 100 100 Shots Fired 58 | . 16 6 36 Gun 33 | . 10 . 23 Cannon 12 | . . . 12 Launcher 6 | . 6 . . Special 7 | . . 6 1 Kinetic 19 | . . . 19 Thermal 29 | . 10 6 13 Explosive 6 | . 6 . . Electromagnetic 4 | . . . 4 Robot Hit Streak 10 | . 4 . 10 Robot Miss Streak 4 | . 2 . 4 Penetration Max . | . . . . Secondary Targets . | . . . . Shots Hit Robots 38 | . 10 . 28 Core Hits 16 | . 12 . 4 Critical Kills . | . . . . Critical Parts Destroyed . | . . . . Critical Strikes 1 | . 1 . . Burn 1 | . 1 . . Melee Attacks . | . . . . Impact . | . . . . Slashing . | . . . . Piercing . | . . . . Sneak Attacks . | . . . . Combat Hostiles . | . . . . Follow-up Attacks . | . . . . Damage Inflicted 831 | 2 589 3 237 Guns 191 | . 76 . 115 Cannons 122 | . . . 122 Explosions 513 | . 513 . . Melee . | . . . . Ramming 5 | 2 . 3 . Kinetic 115 | . . . 115 Thermal 198 | . 76 . 122 Explosive 513 | . 513 . . Electromagnetic . | . . . . Impact . | . . . . Slashing . | . . . . Piercing . | . . . . Highest Corruption . | . . . . Average Corruption . | . . . . Corruption Purged . | . . . . Corruption Blocked . | . . . . Overload Shots . | . . . . Overflow Damage . | . . . . Projectiles . | . . . . Explosions . | . . . . Melee . | . . . . Knockbacks . | . . . . Impact . | . . . . Kinetic . | . . . . Secondary . | . . . . Self-Inflicted Damage 101 | 1 100 . . Shots 4 | . 4 . . Rammed 2 | 1 . 1 . Targets Rammed 3 | 1 1 1 . Kicked 1 | . 1 . . Crushed . | . . . . Highest Temperature 168 | . 168 100 14 Average Temperature 52 | . 61 45 10 Received Heat Transfer 144 | . 102 . 42 Siege Activations . | . . . . Robots Corrupted . | . . . . Combat Hostiles . | . . . . Parts Fried . | . . . . Impact Corruptions . | . . . . Robots Melted . | . . . . Combat Hostiles . | . . . . Parts Melted 1 | . 1 . . Heat Transferred 555 | . 296 . 259 Parts Sabotaged . | . . . . Parts Stolen . | . . . . Parts Stripped . | . . . . Power Chain Reactions . | . . . . Alert | -11 -10 -10 -10 ------- Run | Yrd Mat Min Sub Peak Influence 232 | . 232 . . Initial . | . . . . Average 37 | . 63 . . Maximum Alert Level 1 | . 1 . . Low Security (%) 86 | 100 76 100 . Level 1 13 | . 23 . . Level 2 . | . . . . Level 3 . | . . . . Level 4 . | . . . . Level 5 . | . . . . High Security . | . . . . Max Security . | . . . . Squads Dispatched 3 | . 3 . . Investigation 2 | . 2 . . Extermination . | . . . . Reinforcement 1 | . 1 . . Assault . | . . . . Garrison . | . . . . Intercept . | . . . . Searches Triggered . | . . . . Construction Impeded . | . . . . Haulers Reinforced . | . . . . Active Scanning Responses . | . . . . Cargo Convoy Interrupts . | . . . . Stealth | -11 -10 -10 -10 --------- Run | Yrd Mat Min Sub Distress Signals . | . . . . Communications Jammed . | . . . . Distress Signals . | . . . . Times Spotted 20 | . 14 . 6 Peak Tracking Total 6 | . 6 . 3 Tactical Retreats 1 | . . . 1 Traps | -11 -10 -10 -10 ------- Run | Yrd Mat Min Sub Traps Triggered . | . . . . Indirectly . | . . . . Trap Hack Attempts . | . . . . Triggered . | . . . . Disarmed . | . . . . Reprogrammed 6 | . 6 . . Reused 1 | . 1 . . Traps Extracted . | . . . . Installed . | . . . . Triggered 1 | . 1 . . Machines | -11 -10 -10 -10 ---------- Run | Yrd Mat Min Sub Machines Disabled 2 | . 2 . . Max in Single Turn 1 | . 1 . . Machines Repaired . | . . . . Machines Dismantled . | . . . . Machines Sabotaged . | . . . . Overloaded Fab Kills . | . . . . Hacking | -11 -10 -10 -10 --------- Run | Yrd Mat Min Sub Machines Accessed 1 | . 1 . . Terminals 1 | . 1 . . Fabricators . | . . . . Repair Stations . | . . . . Recycling Units . | . . . . Scanalyzers . | . . . . Garrison Access . | . . . . Total Hacks 9 | . 9 . . Successful 6 | . 6 . . Failed 3 | . 3 . . Catastrophic . | . . . . Database Lockouts . | . . . . Manual . | . . . . Terminals 9 | . 9 . . Fabricators . | . . . . Repair Stations . | . . . . Recycling Units . | . . . . Scanalyzers . | . . . . Garrison Access . | . . . . Terminal Hacks 6 | . 6 . . Prototype ID Bank 1 | . 1 . . Alert Level 3 | . 3 . . Unreport Threat 1 | . 1 . . Reprogram Traps 1 | . 1 . . Fabricator Hacks . | . . . . Repair Station Hacks . | . . . . Recycling Unit Hacks . | . . . . Scanalyzer . | . . . . Garrison Access Hacks . | . . . . Unauthorized Hacks . | . . . . Terminals . | . . . . Fabricators . | . . . . Repair Stations . | . . . . Recycling Units . | . . . . Scanalyzers . | . . . . Garrison Access . | . . . . Data Cores Recovered . | . . . . Used . | . . . . Hacking Detections 1 | . 1 . . Full Trace Events 1 | . 1 . . Feedback Events . | . . . . Feedback Blocked . | . . . . Robot Schematics Acquired . | . . . . Robots Built . | . . . . Authchips . | . . . . Time . | . . . . Total Robot Build Rating . | . . . . Part Schematics Acquired . | . . . . Parts Built . | . . . . Authchips . | . . . . Time . | . . . . Total Part Build Rating . | . . . . Parts Repaired . | . . . . Time . | . . . . Parts Recycled . | . . . . Recycled Matter . | . . . . Retrieved Matter . | . . . . Retrieved Components . | . . . . Parts Scanalyzed . | . . . . Part Schematics Acquired . | . . . . Parts Damaged . | . . . . Bothacking | -11 -10 -10 -10 ------------ Run | Yrd Mat Min Sub Used RIF Installer . | . . . . Robots Hacked . | . . . . Non-combat . | . . . . Combat . | . . . . Robot Hacks Applied . | . . . . Relay Couplers Released . | . . . . Fabnet Peak Effective % . | . . . . Robots Rewired . | . . . . Allies Hacked . | . . . . Hacks Repelled . | . . . . Allies | -11 -10 -10 -10 -------- Run | Yrd Mat Min Sub Total Allies . | . . . . Largest Group . | . . . . Highest-Rated Group . | . . . . Highest-Rated Ally . | . . . . Total Orders . | . . . . Ally Attacks . | . . . . Total Damage . | . . . . Kills . | . . . . Allies Corrupted . | . . . . Allies Melted . | . . . . Intel | -11 -10 -10 -10 ------- Run | Yrd Mat Min Sub Robot Analysis Total . | . . . . Derelict Logs Recovered 1 | . . 1 . Drone Launches . | . . . . Drone Recoveries . | . . . . Exploration | -11 -10 -10 -10 ------------- Run | Yrd Mat Min Sub Turns Passed 3284 | 46 506 303 2429 Spaces Moved 1780 | 51 319 167 1243 Core 36 | 36 . . . Treads 1365 | . . 122 1243 Legs 379 | 15 319 45 . Wheels . | . . . . Hover . | . . . . Flight . | . . . . Fastest Speed 50 | 50 120 120 160 Average Speed 149 | 70 120 149 160 Slowest Speed 160 | 120 120 160 160 Overloaded Moves . | . . . . Propulsion Burnouts . | . . . . Robots Hopped . | . . . . Cave-ins Triggered . | . . . . Exploration Rate (%) 20 | 3 30 22 25 Regions Visited 3 Branch Regions 2 Pre-discovered Areas 2 | . . 1 1 Known Exits Taken 1 | . . 1 . Unknown Exits Taken 2 | 1 1 . . Scrap Searched 6 | . . 2 4 Spaces Dug . | . . . . Terrain Destroyed 27 | . 27 . . Melee . | . . . . Projectile . | . . . . AOE 27 | . 27 . . Terrain Rammed . | . . . . Walls Destroyed . | . . . . Machines Disabled . | . . . . Actions | -11 -10 -10 -10 --------- Run | Yrd Mat Min Sub Total 2335 | 61 425 203 1646 Wait 458 | . 88 19 351 Move 1777 | 50 318 166 1243 Hop . | . . . . Pick Up 26 | 5 6 3 12 Fast Attach 2 | . . . 2 Attach 8 | 5 1 1 1 Detach . | . . . . Swap 13 | . 2 3 8 Drop 14 | . 1 4 9 Fire 34 | . 8 6 20 Melee . | . . . . Ram 1 | 1 . . . Kick 1 | . 1 . . Crush 1 | . . 1 . Escape Stasis . | . . . . Rewire . | . . . . Trap . | . . . . Miscellaneous . | . . . . Route ------- -11/Scrapyard -10/Materials -10/Mines -10/Subcaves (discovered 1 exit: [*Rec]) History --------- Turn | Location | Event 5 | -11/Scrapyard | Discovered new exit (range 12) 47 | -11/Scrapyard | Entered Materials 316 | -10/Materials | Build established: Mutant 524 | -10/Materials | Discovered new exit (range 16) 553 | -10/Materials | Entered Mines 598 | -10/Mines | Met a Derelict bent on vengeance 685 | -10/Mines | Learned location of Zion (-6) 757 | -10/Mines | Discovered new exit (range 14) 853 | -10/Mines | Identified exit to Subcaves 856 | -10/Mines | Entered Subcaves 1602 | -10/Subcaves | Build established: Derelict-Mutant 2563 | -10/Subcaves | Met a Zionite searching for "candidates" 2675 | -10/Subcaves | Disturbed a concealed Subdweller 2698 | -10/Subcaves | Core integrity fell below 50% 3249 | -10/Subcaves | Core integrity fell below 20% 3281 | -10/Subcaves | Discovered new exit (range 14) 3285 | -10/Subcaves | Destroyed by LZ-WN0(R) with Subdweller Laser Last Messages --------------- Sink. 03127_ Acquired 12 matter. 03143_ Acquired 9 matter. 03146_ Searching scrap... 03146_ Found Barrage Gun. 03146_ Found Piercing Trap. 03146_ Found 23 Matter. 03147_ Acquired 23 matter. 03155_ Dropped Battle Cannon. 03155_ Acquired Barrage Gun. 03160_ Subatomizers dissect the Battle Cannon. 03200_ A thin wall crumbles away, revealing a door. 03234_ Mak. Power Source destroyed. 03250_ T3-1GC(R) destroyed. 03253_ Acquired 41 matter. 03262_ Subatomizers dissect the Disposable Heat Sink. 03281_ EXIT=FOUND [Achievement: Back For More] Map ----- +----------------------------------------------------+ | ?????????????????????????????????????????????????? | | ?????????????????????????????????????????????????? | | ?????????????????????????????????????????????????? | | ?????????????????????????????????????????????????? | | ?????????????????????????????????????????????????? | | ?????????????????????????????????????????????????? | | ?????????????????????????????????????????????????? | | ?????????????????????????????????????????????????? | | ?????????????????????????????????????????????????? | | ?????????????????????????????????????????????????? | | ?????????????????????????????????????????????????? | | ?????????????????????????????????????????????????? | | ???????????????????????????????#????#????????????? | | ?????????????????????????????????????????????????? | | ?????????????????????????????????????????????????? | | ?????????????????????????????????????????????????? | | ?????????????????#???????????????????????#??#????? | | ?????????????????#????????????????????????#??????? | | ?????????????????????????????????????????????????? | | ??????????????????#????????#??????????"?????#????? | | ???????????????????????????###???????X??###??????? | | ????????????????????#?????## ###??#??????????? ??# | | ?????????????????????????## ####??#"##?????????# | | ?????????????# ????????##" R "# #### ###??????#?# | | ????????????# ### R "" ##????????# | | ???????????# ;; @ #### " ##???????? | | ??????????# ##?#" ######### | | ??????????# < ;##??# ### ### " | | ??????????? ;###? ??# ## ###&### | | ??????????? ;;;#??" ""??## ##! #### #? | | ???????????? ; ?" """???## & &##??###? | | ???????????? #### """?????#"#####?????? | | ????????????# # ;;????#?""""??????##?????????# | | ?????????????###?## #??????#????????#?????#??????? | | ??????????????????##???????????????????##???#?#??? | | ?????????????????????????????? ?????"?"??????????? | | ????????????????????????????????????"???????#?#??? | | ?????????????????????????????????????????? ?????#? | | ????????????????????????????????????????????????#? | | ????????????????????????????????????????????#????? | | ???????????????????????????????????????#???##????? | | ??????????????????????????????????"? ???????? ???? | | ?????????????????????????????????????????????????? | | ????????????????????????????????????????#????????? | | ?????????????????????????????????????????????????? | | ?????????????????????????????????????????????????? | | ?????????????????????????????????????????????????? | | ?????????????????????????????????????????????????? | | ?????????????????????????????????????????????????? | | ?????????????????????????????????????????????????? | +----------------------------------------------------+ Best States ------------- Heat Dissipation 25 Energy Generation 15 Energy Capacity 250 Matter Stores 275 Matter Capacity 300 Sight Range 21 Terrain Scan Range 14 Terrain Scan Density 10 Evasion (%) 55 Recoil Reduction 2 Item Schematics ----------------- None Robot Schematics ------------------ None Fabricated ------------ Nothing Alien Tech Used ----------------- None Achievements -------------- Back For More Challenges ------------ None Game ------ Seed ZhirovCargoGreatsword Manual? 0 Play Time 00:20:20 Cumulative 17.3 hours Start 2024.04.24 @ 10:23:05 End 2024.04.25 @ 00:45:02 Sessions 1 Manual Loads 0 Difficulty Rogue Special Mode None Game No. 50 Rogue 50 Adventurer 0 Explorer 0 Win Type - Total 0 Types 0/0/0/0/0/0/0/0/0 Lore% 13 Gallery% 29 Achievement% 21 Wizard Run 0 Options --------- Layout 1 ASCII 0 Keyboard 0 Movement Arrows Keybinds 0 Fullscreen 1 Font 16/SmallcapsGlow Map View 25x20 Zoom Use 92% Tactical HUD 1 Map Filters NONE Filters NONE Steam SD RUN: 14987404-5d6a-4b51-880e-984b66e0c132